fUSD/lending_fUSD_20260106
["ID","MTS","AMOUNT","RATE_DAILY","PERIOD"]
[400566079,1767724239160,-500.0,0.00017999,2]
[400566081,1767724239170,-500.0,0.00017999,2]
[400566083,1767724239179,-500.0,0.00017999,2]
[400566085,1767724239189,-131378.48559336,0.00018,2]
[400566087,1767724239198,-960.83747194,0.00018,2]
[400566089,1767724239208,-158.98978226,0.00018,2]
[400566091,1767724239217,-10875.301925,0.00018,2]
[400566093,1767724239226,-1260.0,0.00018,2]
[400566094,1767724239236,-1260.0,0.00018,2]
[400566096,1767724239245,-1260.0,0.00018,2]
[400566097,1767724239254,-1260.0,0.00018,2]
[400566099,1767724239263,-1283.09721856,0.00018,2]
[400566101,1767724239272,-610985.14868949,0.00018,2]
[400566104,1767724239285,-218187.20028947,0.00018,2]
[400566110,1767724239342,-300.0,0.00018,2]
[400566161,1767724240263,-151.0,0.00017449,2]
[400566163,1767724240273,-19398.14955814,0.00018,2]
[400566164,1767724240304,-421.47483797,0.00018,2]
[400566165,1767724240315,-7347.27289262,0.00018,2]
[400566172,1767724243403,-1288.95483898,0.00018,2]
[400566173,1767724243417,-2630.64669746,0.00018,2]
[400566174,1767724243429,-1523.6235154,0.00018,2]
[400566175,1767724243460,-274.23999999,0.00018,2]
[400566176,1767724243472,-1715.1,0.00018,2]
[400566177,1767724243622,-611.91492467,0.00018,2]
[400566178,1767724244154,-335.7,0.00018,2]
[400566181,1767724246089,-7693.61539428,0.00018,2]
[400566183,1767724271236,563.08,9.314e-05,2]
[400566184,1767724271460,563.08,9.804e-05,2]
[400566185,1767724271804,563.08,0.00010294,2]
[400566186,1767724272091,563.08,0.00010784,2]
[400566187,1767724272663,563.08,0.00011275,2]
[400566188,1767724272969,563.08,0.00011765,2]
[400566189,1767724273194,563.08,0.00012255,2]
[400566190,1767724273347,563.08,0.00012745,2]
[400566191,1767724273464,563.08,0.00013235,2]
[400566192,1767724273564,563.08,0.00013725,2]
[400566193,1767724273889,563.08,0.00014216,2]
[400566194,1767724273993,563.08,0.00014706,2]
[400566195,1767724274081,563.08,0.00015196,2]
[400566196,1767724274162,563.08,0.00015686,2]
[400566197,1767724274304,563.08,0.00016176,2]
[400566198,1767724274559,48.59751211,0.00016667,2]
[400566199,1767724274590,514.48248789,0.00016667,2]
[400566202,1767724501196,1200.0,0.0001696,2]
[400566203,1767724501225,300.0,0.0001696,2]
[400566204,1767724501253,300.0,0.0001696,2]
[400566205,1767724528490,-437.6232497,0.00016961,2]
[400566206,1767724528707,-289.21790821,0.00016961,2]
[400566207,1767724529099,-578.43581642,0.00016961,2]
[400566208,1767724529557,-1156.87163284,0.00016961,2]
[400566209,1767724529710,-4496.53774703,0.00016961,2]
[400566210,1767724529787,-3189.72898729,0.00016961,2]
[400566211,1767724529825,-500.0,0.0001706,2]
[400566212,1767724529862,-173.01199257,0.0001706,2]
[400566213,1767724529901,-232.34925131,0.0001706,2]
[400566214,1767724561274,300.0,0.0001706,2]
[400566215,1767724564565,1509.82953766,0.00017051,2]
[400566216,1767724564588,10000.01,0.00017051,2]
[400566217,1767724564612,10000.01,0.00017051,2]
[400566218,1767724564637,646.04548809,0.00017051,2]
[400566219,1767724621548,300.0,0.0001706,2]
[400566220,1767724631434,620.0,0.00017061,2]
[400566221,1767724632654,500.0,0.00017061,2]
[400566222,1767724633631,287.61899177,0.00016649,2]
[400566223,1767724633823,500.0,0.00017061,2]
[400566224,1767724634211,573.52674745,0.00017061,2]
[400566225,1767724638620,151.0,0.00017061,2]
[400566226,1767724639601,151.0,0.00017061,2]
[400566227,1767724640433,151.0,0.00017061,2]
[400566228,1767724640816,151.0,0.00017061,2]
[400566229,1767724641401,500.0,0.00017061,2]
[400566230,1767724641511,151.0,0.00017061,2]
[400566231,1767724642041,500.0,0.00017061,2]
[400566232,1767724642214,212.46402897,0.00017061,2]
[400566233,1767724643617,500.0,0.00017061,2]
[400566234,1767724643953,500.0,0.00017061,2]
[400566235,1767724644976,500.0,0.00017061,2]
[400566236,1767724645614,500.0,0.00017061,2]
[400566237,1767724647707,500.0,0.00017061,2]
[400566238,1767724648355,500.0,0.00017061,2]
[400566239,1767724649013,500.0,0.00017061,2]
[400566240,1767724649820,500.0,0.00017061,2]
[400566241,1767724650440,500.0,0.00017061,2]
[400566242,1767724683635,382.92034347,0.00016961,2]
[400566243,1767724700318,368.47988834,0.00016961,2]
[400566244,1767724700341,2974.49877793,0.00016961,2]
[400566245,1767724741210,300.0,0.0001706,2]
[400566246,1767724801217,1200.0,0.0001706,2]
[400566247,1767724801452,300.0,0.0001706,2]
[400566248,1767724811191,5225.51122207,0.00017051,2]
[400566249,1767724811214,3883.09877793,0.00017051,2]
[400566250,1767724811293,6116.91122207,0.00017051,2]
[400566251,1767724811317,2991.69877793,0.00017051,2]
[400566252,1767724812843,165.24,0.00017051,2]
[400566253,1767724827567,500.0,0.0001696,2]
[400566254,1767724833722,6343.07122207,0.00016961,2]
[400566255,1767724833749,2396.64166055,0.00016961,2]
[400566256,1767724893130,3073.6,0.00016438,2]
[400566257,1767724893989,165.31780959,0.0001672,2]
[400566258,1767724894086,1279.145,0.0001672,2]
[400566259,1767724932745,620.0,0.00017061,2]
[400566260,1767724939112,500.0,0.00017061,2]
[400566261,1767724939845,500.0,0.00017061,2]
[400566262,1767724940404,500.0,0.00017061,2]
[400566263,1767724941089,500.0,0.00017061,2]
[400566264,1767724941905,465.30552986,0.00017061,2]
[400566265,1767724941928,34.69447014,0.00017061,2]
[400566266,1767724942364,500.0,0.00017061,2]
[400566267,1767724943296,500.0,0.00017061,2]
[400566268,1767724969046,335.05530058,0.00016961,2]
[400566269,1767724981270,300.0,0.0001706,2]
[400566270,1767725041435,300.0,0.0001706,2]
[400566271,1767725049767,742.78,0.00025684,120]
[400566272,1767725101356,300.0,0.0001706,2]
[400566273,1767725101386,1200.0,0.0001706,2]
[400566274,1767725101424,300.0,0.0001706,2]
[400566275,1767725109061,165.0,0.00026198,120]
[400566276,1767725110465,165.0,0.00027508,120]
[400566277,1767725112092,165.0,0.00028883,120]
[400566278,1767725113653,165.0,0.00030327,120]
[400566279,1767725115165,165.0,0.00031843,120]
[400566280,1767725162145,300.0,0.0001706,2]
[400566281,1767725186813,175.94,0.00013617,2]
[400566282,1767725187011,175.94,0.00015319,2]
[400566283,1767725187450,175.94,0.00017021,2]
[400566284,1767725211281,3008.68079958,0.00016961,2]
[400566285,1767725211547,2393.7594297,0.00017021,2]
[400566286,1767725211571,3518.3305703,0.00017021,2]
[400566287,1767725220726,6481.6794297,0.00016961,2]
[400566288,1767725220767,1384.06216464,0.00016961,2]
[400566289,1767725232878,620.0,0.00017061,2]
[400566290,1767725238871,166.66,0.0001617,2]
[400566291,1767725239292,166.66,0.0001651,2]
[400566292,1767725239575,166.66,0.00016851,2]
[400566293,1767725249531,293.17338799,0.00016961,2]
[400566300,1767725340788,7202.79444737,0.00016961,2]
[400566301,1767725340817,10000.01,0.00016961,2]
[400566302,1767725340846,10000.01,0.00016961,2]
[400566303,1767725340873,10000.01,0.00016961,2]
[400566304,1767725340898,10000.01,0.00016961,2]
[400566305,1767725340923,10000.01,0.00016961,2]
[400566306,1767725340951,10000.01,0.00016961,2]
[400566307,1767725340978,10000.01,0.00016961,2]
[400566308,1767725341002,10000.01,0.00016961,2]
[400566309,1767725361279,-7544.13497425,0.00016961,2]
[400566310,1767725361393,-10000.01,0.00016961,2]
[400566311,1767725361723,-10000.01,0.00016961,2]
[400566312,1767725368704,-10000.01,0.00016961,2]
[400566313,1767725368847,-10000.01,0.00016961,2]
[400566314,1767725368972,-10000.01,0.00016961,2]
[400566315,1767725376002,-10000.01,0.00016961,2]
[400566316,1767725376073,-10000.01,0.00016961,2]
[400566317,1767725376165,-10000.01,0.00016961,2]
[400566318,1767725376489,-10000.01,0.00016961,2]
[400566319,1767725382459,-10000.01,0.00016961,2]
[400566320,1767725387651,-500.0,0.0001696,2]
[400566321,1767725387680,-500.0,0.0001696,2]
[400566322,1767725387708,-500.0,0.0001696,2]
[400566323,1767725387801,-7000.01,0.00016961,2]
[400566324,1767725387865,-10000.01,0.00016961,2]
[400566325,1767725387913,-10000.01,0.00016961,2]
[400566326,1767725388057,-10000.01,0.00016961,2]
[400566327,1767725392480,-10000.01,0.00016961,2]
[400566328,1767725399330,-10000.01,0.00016961,2]
[400566329,1767725399433,-10000.01,0.00016961,2]
[400566330,1767725399550,-10000.01,0.00016961,2]
[400566331,1767725399675,-10000.01,0.00016961,2]
[400566332,1767725400079,-10000.01,0.00016961,2]
[400566333,1767725400123,-10000.01,0.00016961,2]
[400566334,1767725400157,-10000.01,0.00016961,2]
[400566343,1767725413914,-1200.0,0.0001696,2]
[400566344,1767725413973,-300.0,0.0001696,2]
[400566345,1767725414033,-250.0,0.0001696,2]
[400566346,1767725414365,-6500.01,0.00016961,2]
[400566347,1767725414600,-10000.01,0.00016961,2]
[400566348,1767725414895,-10000.01,0.00016961,2]
[400566349,1767725415004,-10000.01,0.00016961,2]
[400566350,1767725415186,-10000.01,0.00016961,2]
[400566351,1767725415262,-10000.01,0.00016961,2]
[400566352,1767725415338,-10000.01,0.00016961,2]
[400566353,1767725415430,-10000.01,0.00016961,2]
[400566354,1767725428891,-10000.01,0.00016961,2]
[400566356,1767725432041,-22754.01791949,0.00016961,2]
[400566359,1767725432338,-9035.50000001,0.00016961,2]
[400566361,1767725432350,-878.47389663,0.00016961,2]
[400566367,1767725432388,-264.25833518,0.00016961,2]
[400566370,1767725432400,-1929.27379233,0.00016961,2]
[400566377,1767725432463,-461.44401143,0.00016961,2]
[400566392,1767725435574,-4832.5077099,0.000169,2]
[400566393,1767725435636,-334.9945802,0.00016961,2]
[400566402,1767725438391,-10387.72738952,0.00016961,2]
[400566404,1767725438403,-16976.7648946,0.00016961,2]
[400566406,1767725438416,-4038.49465,0.00016961,2]
[400566416,1767725438504,-701.20532303,0.00016961,2]
[400566418,1767725438517,-650.0,0.00016961,2]
[400566421,1767725438529,-533340.52578596,0.00016961,2]
[400566422,1767725438540,-1000.0,0.00017061,2]
[400566425,1767725438554,-589.44,0.00017116,2]
[400566427,1767725438564,-742.78,0.00017122,2]
[400566429,1767725438574,-563.08,0.00017157,2]
[400566431,1767725438584,-500.0,0.0001716,2]
[400566433,1767725438594,-500.0,0.0001716,2]
[400566435,1767725438604,-500.0,0.0001716,2]
[400566437,1767725438614,-500.0,0.0001716,2]
[400566438,1767725438625,-166.66,0.00017191,2]
[400566440,1767725438636,-150.0,0.00017191,2]
[400566442,1767725438646,-1809.49,0.00017194,2]
[400566444,1767725438656,-187.38,0.00017336,2]
[400566446,1767725438667,-166.66,0.00017532,2]
[400566448,1767725438677,-151.0,0.00017545,2]
[400566450,1767725438687,-151.0,0.00017549,2]
[400566453,1767725438698,-831.03122295,0.0001764,2]
[400566455,1767725438708,-5277.0,0.0001764,2]
[400566457,1767725438718,-563.08,0.00017647,2]
[400566459,1767725438729,-500.0,0.00017727,2]
[400566461,1767725438740,-150.99,0.00017728,2]
[400566463,1767725438749,-1527.36,0.00017728,2]
[400566465,1767725438759,-9999.99,0.00017728,2]
[400566467,1767725438770,-9999.99,0.00017728,2]
[400566469,1767725438779,-9999.99,0.00017728,2]
[400566471,1767725438792,-166.66,0.00017872,2]
[400566473,1767725438804,-467.79147456,0.000179,2]
[400566475,1767725438814,-3629.0,0.000179,2]
[400566477,1767725438823,-500.0,0.00017973,2]
[400566479,1767725438834,-202.51911864,0.00017973,2]
[400566481,1767725438844,-596.90998776,0.00017973,2]
[400566483,1767725438854,-776.38528188,0.0001799,2]
[400566485,1767725438866,-8543.6049426,0.00017991,2]
[400566487,1767725438877,-109061.5158727,0.00017991,2]
[400566489,1767725438887,-2968.0572606,0.00017991,2]
[400566491,1767725438898,-500.0,0.00017995,2]
[400566493,1767725438907,-208.06812993,0.00017995,2]
[400566494,1767725438917,-478.33803571,0.00017995,2]
[400566496,1767725438927,-3120.0801198,0.00017998,2]
[400566498,1767725438937,-49595.48344752,0.00018,2]
[400566501,1767725438950,-380731.16415315,0.00018,2]
[400566502,1767725438959,-200.0,0.00018,2]
[400566504,1767725438969,-1260.0,0.00018,2]
[400566506,1767725438978,-1260.0,0.00018,2]
[400566508,1767725438988,-1260.0,0.00018,2]
[400566510,1767725438999,-1260.0,0.00018,2]
[400566512,1767725439009,-1260.0,0.00018,2]
[400566514,1767725439018,-983.9346905,0.00018,2]
[400566516,1767725439029,-151.0,0.00018,2]
[400566518,1767725439038,-158.98978226,0.00018,2]
[400566520,1767725439048,-151.0,0.00018,2]
[400566522,1767725439058,-1000.0,0.00018,2]
[400566524,1767725439068,-1000.0,0.00018,2]
[400566526,1767725439078,-632.0000032,0.00018,2]
[400566528,1767725439089,-200.0,0.00018,2]
[400566530,1767725439099,-566.07913,0.00018,2]
[400566532,1767725439111,-566.07912,0.00018,2]
[400566534,1767725439120,-566.07913,0.00018,2]
[400566536,1767725439130,-566.07913,0.00018,2]
[400566538,1767725439140,-566.07913,0.00018,2]
[400566540,1767725439150,-566.07913,0.00018,2]
[400566542,1767725439160,-566.07913,0.00018,2]
[400566544,1767725439170,-566.07913,0.00018,2]
[400566545,1767725439180,-566.07912,0.00018,2]
[400566546,1767725439190,-566.07912,0.00018,2]
[400566547,1767725439200,-250.0,0.000181,2]
[400566548,1767725439209,-563.08,0.00018137,2]
[400566549,1767725439220,-168.0,0.00018166,2]
[400566550,1767725439229,-168.0,0.00018177,2]
[400566551,1767725439239,-200.0,0.0001818,2]
[400566552,1767725439248,-200.0,0.0001818,2]
[400566553,1767725439258,-688.90519182,0.00018244,2]
[400566780,1767725441404,-306.82117402,0.00018244,2]
[400566782,1767725441417,-412.3103684,0.00018244,2]
[400566785,1767725441428,-189.51326576,0.00018244,2]
[400566787,1767725441438,-227.90933685,0.00018244,2]
[400566789,1767725441447,-41.97239739,0.00018333,2]
[400566791,1767725441459,-126.02760261,0.00018333,2]
[400566793,1767725441469,-211.34,0.00018357,2]
[400566795,1767725441478,-200.0,0.00018362,2]
[400566797,1767725441487,-757.47828479,0.0001843,2]
[400566799,1767725441496,-680.53,0.00018446,2]
[400566801,1767725441505,-168.0,0.00018496,2]
[400566803,1767725441514,-200.0,0.00018545,2]
[400566805,1767725441524,-168.0,0.00018563,2]
[400566807,1767725441533,-500.34626599,0.00018617,2]
[400566822,1767725441671,-345.94164096,0.00018617,2]
[400566967,1767725443088,-10000.01,0.00016897,2]
[400566972,1767725443126,-2868.64,0.00016897,2]
[400567051,1767725443869,-245.71209305,0.00018617,2]
[400567053,1767725443878,-315.79791707,0.00018627,2]
[400567055,1767725443890,-247.28208293,0.00018627,2]
[400567057,1767725443899,-250.0,0.00018656,2]
[400567059,1767725443907,-195.0,0.00018657,2]
[400567061,1767725443917,-300.0,0.00018657,2]
[400567063,1767725443927,-175.94,0.00018723,2]
[400567065,1767725443936,-200.0,0.00018731,2]
[400567067,1767725443946,-193.0,0.00018767,2]
[400567069,1767725443955,-600.0,0.00018767,2]
[400567071,1767725443965,-250.0,0.00018767,2]
[400567073,1767725443974,-300.0,0.00018767,2]
[400567075,1767725443983,-944.1974873,0.00018937,2]
[400567077,1767725443994,-55.8025127,0.00018937,2]
[400567079,1767725444004,-500.0,0.00018959,2]
[400567081,1767725444013,-211.34,0.00018976,2]
[400567083,1767725444023,-188.87554484,0.00019,2]
[400567085,1767725444032,-194.34851776,0.00019,2]
[400567087,1767725444042,-166.66,0.00019049,2]
[400567089,1767725444053,-1597.55,0.00019073,2]
[400567092,1767725444062,-3000.0,0.00019178,2]
[400567094,1767725444076,-742.78,0.00019263,2]
[400567096,1767725444085,-3008.68079958,0.00019621,2]
[400567098,1767725444097,-7865.74159429,0.00019621,2]
[400567100,1767725444107,-680.53,0.00019816,2]
[400567102,1767725444117,-3736.4505,0.00019873,2]
[400567104,1767725444126,-1597.55,0.00019902,2]
[400567106,1767725444135,-916.3542882,0.0001995,15]
[400567108,1767725444144,-357.00858339,0.00019973,2]
[400567110,1767725444154,-500.0,0.00019973,2]
[400567112,1767725444163,-500.0,0.00019973,2]
[400567114,1767725444176,-410.11880643,0.00019973,2]
[400567116,1767725444186,-503.85283249,0.00019973,2]
[400567118,1767725444195,-500.0,0.00019973,2]
[400567120,1767725444204,-231.737826,0.00019973,2]
[400567122,1767725444214,-506.39418911,0.00019973,2]
[400567124,1767725444223,-500.0,0.00019973,2]
[400567126,1767725444233,-178.11823337,0.00019973,2]
[400567128,1767725444242,-501.25956707,0.00019973,2]
[400567130,1767725444252,-504.37146787,0.00019973,2]
[400567132,1767725444263,-523.84115753,0.00019973,2]
[400567134,1767725444272,-500.0,0.00019973,2]
[400567136,1767725444282,-500.0,0.00019973,2]
[400567138,1767725444292,-502.92926804,0.00019973,2]
[400567140,1767725444303,-500.0,0.00019973,2]
[400567143,1767725444313,-198.29670859,0.00019973,2]
[400567145,1767725444322,-500.0,0.00019973,2]
[400567147,1767725444332,-502.08064812,0.00019973,2]
[400567149,1767725444341,-500.0,0.00019973,2]
[400567150,1767725444351,-55.32695462,0.00019973,2]
[400567161,1767725444441,-444.67304538,0.00019973,2]
[400567163,1767725444450,-186.82546843,0.00019973,2]
[400567165,1767725444461,-430.68022572,0.00019973,2]
[400567168,1767725444471,-567.29497046,0.00019973,2]
[400567170,1767725444480,-500.0,0.00019973,2]
[400567171,1767725444489,-500.0,0.00019973,2]
[400567172,1767725444499,-501.43233039,0.00019973,2]
[400567173,1767725444508,-500.0,0.00019973,2]
[400567174,1767725444517,-500.0,0.00019973,2]
[400567175,1767725444526,-2000.0049631,0.0002,2]
[400567176,1767725444535,-250.0,0.00020081,2]
[400567177,1767725444544,-500.0,0.00020219,2]
[400567178,1767725444554,-3649.08751033,0.00020296,2]
[400567179,1767725444565,-16251.80566234,0.00020296,2]
[400567180,1767725444580,-1423.75678316,0.00020296,2]
[400567181,1767725444591,-352.00649617,0.00020296,2]
[400567323,1767725446030,-2658.2570507,0.00020296,2]
[400567325,1767725446039,-696.1839768,0.00020304,2]
[400567326,1767725446048,-175.94,0.00020425,2]
[400567328,1767725446058,-166.66,0.00020501,2]
[400567330,1767725446067,-511.48348256,0.00020521,2]
[400567332,1767725446076,-437.65314264,0.00020521,2]
[400567334,1767725446088,-64.50713209,0.00020521,2]
[400567336,1767725446097,-506.81301091,0.00020521,2]
[400567337,1767725446106,-222.98463433,0.00020521,2]
[400567339,1767725446117,-280.30868939,0.00020521,2]
[400567341,1767725446127,-497.47718811,0.00020521,2]
[400567343,1767725446136,-340.76570654,0.00020521,2]
[400567355,1767725446267,-163.00758644,0.00020521,2]
[400567357,1767725446276,-731.01557764,0.00020521,2]
[400567358,1767725446285,-505.66644245,0.00020521,2]
[400567360,1767725446295,-503.33055971,0.00020521,2]
[400567362,1767725446304,-500.0,0.00020521,2]
[400567364,1767725446313,-503.28115819,0.00020521,2]
[400567365,1767725446322,-626.69671843,0.00020521,2]
[400567367,1767725446331,-1467.00195714,0.00020727,2]
[400567369,1767725446342,-439.33398196,0.00020727,2]
[400567371,1767725446352,-1484.18358801,0.0002081,2]
[400567916,1767725471756,500.0,0.0001696,2]
[400567917,1767725471823,500.0,0.0001696,2]
[400567918,1767725471859,500.0,0.0001696,2]
[400567919,1767725472302,500.0,0.0001696,2]
[400567920,1767725472359,500.0,0.0001696,2]
[400567921,1767725472392,500.0,0.0001696,2]
[400567922,1767725472423,500.0,0.0001696,2]
[400567923,1767725472453,500.0,0.0001696,2]
[400567924,1767725472482,500.0,0.0001696,2]
[400567925,1767725472554,500.0,0.0001696,2]
[400567926,1767725472588,500.0,0.0001696,2]
[400567927,1767725472886,500.0,0.0001696,2]
[400567928,1767725472942,406.37447673,0.0001696,2]
[400567929,1767725473040,500.0,0.0001696,2]
[400567930,1767725473121,500.0,0.0001696,2]
[400567931,1767725473154,500.0,0.0001696,2]
[400567932,1767725473228,500.0,0.0001696,2]
[400567933,1767725473262,500.0,0.0001696,2]
[400567934,1767725473326,500.0,0.0001696,2]
[400567935,1767725492442,593.63552327,0.00016961,2]
[400567936,1767725492471,10000.01,0.00016961,2]
[400567937,1767725492501,10000.01,0.00016961,2]
[400567938,1767725492526,10000.01,0.00016961,2]
[400567939,1767725492552,10000.01,0.00016961,2]
[400567940,1767725492578,10000.01,0.00016961,2]
[400567941,1767725492604,10000.01,0.00016961,2]
[400567942,1767725492630,10000.01,0.00016961,2]
[400567943,1767725492655,10000.01,0.00016961,2]
[400567944,1767725534850,256.5267145,0.00016861,2]
[400567953,1767725601948,6292.59327545,0.00016861,2]
[400567957,1767725705636,170.0,0.00020767,120]
[400567963,1767725715907,2406.9446397,0.00016861,2]
[400567970,1767725757314,-300.0,0.00016959,2]
[400567971,1767725757345,-1200.0,0.00016959,2]
[400567972,1767725757378,-300.0,0.00016959,2]
[400567973,1767725757409,-500.0,0.0001696,2]
[400567974,1767725757439,-500.0,0.0001696,2]
[400567975,1767725757469,-481.43271755,0.0001696,2]
[400567976,1767725757498,-181.88507025,0.0001696,2]
[400567977,1767725757527,-230.22359054,0.0001696,2]
[400567978,1767725757557,-327.24663693,0.0001696,2]
[400567979,1767725757589,-500.0,0.0001696,2]
[400567980,1767725757624,-458.43396946,0.0001696,2]
[400567981,1767725758072,-41.56603054,0.0001696,2]
[400567982,1767725758105,-500.0,0.0001696,2]
[400567983,1767725758138,-500.0,0.0001696,2]
[400567984,1767725758169,-500.0,0.0001696,2]
[400567985,1767725758204,-500.0,0.0001696,2]
[400567986,1767725758238,-500.0,0.0001696,2]
[400567987,1767725758270,-500.0,0.0001696,2]
[400567988,1767725758303,-500.0,0.0001696,2]
[400567989,1767725758336,-500.0,0.0001696,2]
[400567990,1767725758369,-500.0,0.0001696,2]
[400567991,1767725758402,-416.87793892,0.0001696,2]
[400567992,1767725758676,-83.12206108,0.0001696,2]
[400567993,1767725758709,-500.0,0.0001696,2]
[400567994,1767725758741,-500.0,0.0001696,2]
[400567995,1767725758773,-500.0,0.0001696,2]
[400567996,1767725758804,-500.0,0.0001696,2]
[400567997,1767725758836,-500.0,0.0001696,2]
[400567998,1767725758867,-500.0,0.0001696,2]
[400567999,1767725758905,-500.0,0.0001696,2]
[400568000,1767725758938,-500.0,0.0001696,2]
[400568001,1767725758973,-500.0,0.0001696,2]
[400568002,1767725759005,-333.76587784,0.0001696,2]
[400568003,1767725759042,-166.23412216,0.0001696,2]
[400568004,1767725759074,-500.0,0.0001696,2]
[400568005,1767725759106,-500.0,0.0001696,2]
[400568006,1767725759138,-500.0,0.0001696,2]
[400568007,1767725759184,-500.0,0.0001696,2]
[400568008,1767725759217,-500.0,0.0001696,2]
[400568009,1767725759252,-500.0,0.0001696,2]
[400568010,1767725759286,-500.0,0.0001696,2]
[400568011,1767725759320,-500.0,0.0001696,2]
[400568012,1767725759356,-500.0,0.0001696,2]
[400568013,1767725759392,-167.54175568,0.0001696,2]
[400568014,1767725759689,-332.45824432,0.0001696,2]
[400568015,1767725759724,-500.0,0.0001696,2]
[400568016,1767725759761,-500.0,0.0001696,2]
[400568017,1767725759800,-500.0,0.0001696,2]
[400568018,1767725759835,-500.0,0.0001696,2]
[400568019,1767725759874,-500.0,0.0001696,2]
[400568020,1767725759915,-500.0,0.0001696,2]
[400568021,1767725759952,-500.0,0.0001696,2]
[400568022,1767725759987,-500.0,0.0001696,2]
[400568023,1767725760022,-500.0,0.0001696,2]
[400568024,1767725760392,-500.0,0.0001696,2]
[400568025,1767725760429,-500.0,0.0001696,2]
[400568026,1767725760463,-500.0,0.0001696,2]
[400568027,1767725760501,-500.0,0.0001696,2]
[400568028,1767725760535,-500.0,0.0001696,2]
[400568029,1767725760569,-500.0,0.0001696,2]
[400568030,1767725760602,-500.0,0.0001696,2]
[400568031,1767725760635,-500.0,0.0001696,2]
[400568032,1767725760670,-500.0,0.0001696,2]
[400568033,1767725760706,-500.0,0.0001696,2]
[400568034,1767725760931,-275.50547916,0.0001696,2]
[400568035,1767725760964,-500.0,0.0001696,2]
[400568036,1767725760997,-500.0,0.0001696,2]
[400568037,1767725761031,-500.0,0.0001696,2]
[400568038,1767725761065,-500.0,0.0001696,2]
[400568039,1767725761099,-500.0,0.0001696,2]
[400568040,1767725761134,-500.0,0.0001696,2]
[400568041,1767725761168,-500.0,0.0001696,2]
[400568042,1767725761201,-500.0,0.0001696,2]
[400568043,1767725761233,-500.0,0.0001696,2]
[400568044,1767725761309,-500.0,0.0001696,2]
[400568045,1767725761345,-500.0,0.0001696,2]
[400568046,1767725761381,-500.0,0.0001696,2]
[400568047,1767725761417,-615.90089774,0.0001696,2]
[400568048,1767725761450,-500.0,0.0001696,2]
[400568049,1767725761480,-203.65353049,0.0001696,2]
[400568050,1767725761512,-500.0,0.0001696,2]
[400568051,1767725761542,-500.0,0.0001696,2]
[400568052,1767725761570,-500.0,0.0001696,2]
[400568053,1767725761599,-396.40155279,0.0001696,2]
[400568054,1767725761632,-68.09803796,0.0001696,2]
[400568055,1767725761752,-431.90196204,0.0001696,2]
[400568056,1767725761784,-500.0,0.0001696,2]
[400568057,1767725761817,-500.0,0.0001696,2]
[400568058,1767725761849,-500.0,0.0001696,2]
[400568059,1767725761882,-638.73202764,0.0001696,2]
[400568060,1767725761914,-500.0,0.0001696,2]
[400568061,1767725761952,-500.0,0.0001696,2]
[400568062,1767725761985,-500.0,0.0001696,2]
[400568063,1767725762018,-500.0,0.0001696,2]
[400568064,1767725762049,-358.74202064,0.0001696,2]